[Event "Late-Titled-Tuesday-Blitz-August-29-2023"]
[Site "Chess.com"]
[Date "2023.08.29"]
[Round "3"]
[White "ChEsper99"]
[Black "Murtazin_Ruslan"]
[Result "1/2-1/2"]
[WhiteElo "2135"]
[BlackElo "2376"]
[TimeControl "180+1"]
[EndTime "14:28:51 PDT"]
[Termination "Game drawn by repetition"]

1. e4 {[%clk 0:03:00.7]} 1... e6 {[%clk 0:02:59.8]} 2. d4 {[%clk 0:03:00.5]}
2... d5 {[%clk 0:03:00.7]} 3. Nd2 {[%clk 0:03:01]} 3... Be7 {[%clk 0:03:00.6]}
4. c3 {[%clk 0:02:53]} 4... c5 {[%clk 0:02:57.8]} 5. e5 {[%clk 0:02:40.3]} 5...
Nc6 {[%clk 0:02:54.8]} 6. Ndf3 {[%clk 0:02:37.4]} 6... f6 {[%clk 0:02:33.8]} 7.
Bd3 {[%clk 0:02:33.2]} 7... Qc7 {[%clk 0:02:24]} 8. exf6 {[%clk 0:02:30.6]} 8...
Nxf6 {[%clk 0:02:23.4]} 9. Ne2 {[%clk 0:02:30.5]} 9... O-O {[%clk 0:02:23]} 10.
O-O {[%clk 0:02:30.5]} 10... e5 {[%clk 0:02:18.7]} 11. Nxe5 {[%clk 0:02:28.1]}
11... Nxe5 {[%clk 0:02:19.6]} 12. dxe5 {[%clk 0:02:29]} 12... Qxe5 {[%clk
0:02:20]} 13. Bf4 {[%clk 0:02:20.8]} 13... Qh5 {[%clk 0:02:19.7]} 14. Ng3 {[%clk
0:02:15.7]} 14... Qxd1 {[%clk 0:02:17.8]} 15. Raxd1 {[%clk 0:02:16.6]} 15... Re8
{[%clk 0:01:55.5]} 16. Rfe1 {[%clk 0:02:14.7]} 16... Bd7 {[%clk 0:01:54.8]} 17.
Nf5 {[%clk 0:02:04.8]} 17... Bf8 {[%clk 0:01:54.2]} 18. Nd6 {[%clk 0:02:00.8]}
18... Rxe1+ {[%clk 0:01:53.6]} 19. Rxe1 {[%clk 0:02:00.8]} 19... Bc6 {[%clk
0:01:54.5]} 20. h3 {[%clk 0:01:45.8]} 20... Rd8 {[%clk 0:01:53.4]} 21. Nf5
{[%clk 0:01:43.8]} 21... Kf7 {[%clk 0:01:52.2]} 22. Bc2 {[%clk 0:01:34.1]} 22...
b6 {[%clk 0:01:32]} 23. Bb3 {[%clk 0:01:31.5]} 23... Rd7 {[%clk 0:01:21.4]} 24.
Rd1 {[%clk 0:01:27.1]} 24... g6 {[%clk 0:01:19.2]} 25. Ne3 {[%clk 0:01:18.2]}
25... Ke6 {[%clk 0:01:10.5]} 26. Re1 {[%clk 0:00:55.2]} 26... Kf7 {[%clk
0:01:10.1]} 27. Rd1 {[%clk 0:00:55.2]} 27... Bg7 {[%clk 0:01:00.2]} 28. Be5
{[%clk 0:00:52.6]} 28... c4 {[%clk 0:01:00]} 29. Bc2 {[%clk 0:00:51.6]} 29...
Ke6 {[%clk 0:00:58.1]} 30. Bf4 {[%clk 0:00:43]} 30... b5 {[%clk 0:00:53.6]} 31.
Bb1 {[%clk 0:00:37.6]} 31... Ne4 {[%clk 0:00:47.3]} 32. Nc2 {[%clk 0:00:24]}
32... Nc5 {[%clk 0:00:38]} 33. Nd4+ {[%clk 0:00:20.8]} 33... Bxd4 {[%clk
0:00:37.5]} 34. Rxd4 {[%clk 0:00:21.4]} 34... Kf6 {[%clk 0:00:34.4]} 35. Be3
{[%clk 0:00:20.3]} 35... Na4 {[%clk 0:00:34.2]} 36. Rd2 {[%clk 0:00:13.3]} 36...
Re7 {[%clk 0:00:32.6]} 37. Bd4+ {[%clk 0:00:13.2]} 37... Kf7 {[%clk 0:00:32.7]}
38. b3 {[%clk 0:00:12.2]} 38... Nb6 {[%clk 0:00:31.9]} 39. Kf1 {[%clk
0:00:11.1]} 39... Nd7 {[%clk 0:00:24]} 40. Bc2 {[%clk 0:00:10]} 40... Ne5 {[%clk
0:00:23.2]} 41. Re2 {[%clk 0:00:09.8]} 41... Nd3 {[%clk 0:00:17.1]} 42. Rxe7+
{[%clk 0:00:08.5]} 42... Kxe7 {[%clk 0:00:18]} 43. Bxd3 {[%clk 0:00:07.8]} 43...
cxd3 {[%clk 0:00:17.9]} 44. Ke1 {[%clk 0:00:08.3]} 44... a6 {[%clk 0:00:16.6]}
45. Kd2 {[%clk 0:00:08.5]} 45... Bd7 {[%clk 0:00:14.9]} 46. Kxd3 {[%clk
0:00:08.2]} 46... Bf5+ {[%clk 0:00:15.2]} 47. Ke3 {[%clk 0:00:08.5]} 47... Be4
{[%clk 0:00:15.1]} 48. f3 {[%clk 0:00:08.1]} 48... Bb1 {[%clk 0:00:15.7]} 49. a3
{[%clk 0:00:07]} 49... Bc2 {[%clk 0:00:15.7]} 50. b4 {[%clk 0:00:06.3]} 50...
Ke6 {[%clk 0:00:15.9]} 51. g4 {[%clk 0:00:04.8]} 51... h5 {[%clk 0:00:15.8]} 52.
Kf4 {[%clk 0:00:04.1]} 52... Bd1 {[%clk 0:00:11.6]} 53. gxh5 {[%clk 0:00:02]}
53... gxh5 {[%clk 0:00:12.5]} 54. h4 {[%clk 0:00:02.1]} 54... Be2 {[%clk
0:00:10.3]} 55. Ke3 {[%clk 0:00:01.2]} 55... Bd1 {[%clk 0:00:10.4]} 56. Kf4
{[%clk 0:00:01.9]} 56... Be2 {[%clk 0:00:10.1]} 57. Ke3 {[%clk 0:00:02.4]} 57...
Bd1 {[%clk 0:00:10.3]} 58. Kf4 {[%clk 0:00:03.1]} 1/2-1/2

[Event "Late-Titled-Tuesday-Blitz-August-29-2023"]
[Site "Chess.com"]
[Date "2023.08.29"]
[Round "3"]
[White "carokannlover213"]
[Black "Kacparov"]
[Result "1/2-1/2"]
[WhiteElo "2705"]
[BlackElo "2921"]
[TimeControl "180+1"]
[EndTime "14:28:54 PDT"]
[Termination "Game drawn by agreement"]

1. e4 {[%clk 0:03:00.9]} 1... c5 {[%clk 0:02:59.3]} 2. Nf3 {[%clk 0:03:00.9]}
2... e6 {[%clk 0:02:59.5]} 3. d4 {[%clk 0:03:01.1]} 3... cxd4 {[%clk 0:02:59.9]}
4. Nxd4 {[%clk 0:03:02]} 4... a6 {[%clk 0:02:57.5]} 5. c4 {[%clk 0:03:01.2]}
5... Nf6 {[%clk 0:02:57.5]} 6. Nc3 {[%clk 0:03:00.8]} 6... Qc7 {[%clk
0:02:57.8]} 7. Be2 {[%clk 0:02:57.7]} 7... Bb4 {[%clk 0:02:56]} 8. O-O {[%clk
0:02:57.6]} 8... O-O {[%clk 0:02:49.9]} 9. Qd3 {[%clk 0:02:47.2]} 9... Nc6
{[%clk 0:02:49.1]} 10. Nxc6 {[%clk 0:02:46.8]} 10... dxc6 {[%clk 0:02:48.9]} 11.
Bg5 {[%clk 0:02:43.1]} 11... Rd8 {[%clk 0:02:40.4]} 12. Qg3 {[%clk 0:02:26.9]}
12... Qxg3 {[%clk 0:02:37.4]} 13. hxg3 {[%clk 0:02:19.5]} 13... e5 {[%clk
0:02:15.4]} 14. Bxf6 {[%clk 0:02:07]} 14... gxf6 {[%clk 0:02:14.7]} 15. Rad1
{[%clk 0:02:07.7]} 15... Be6 {[%clk 0:02:13.7]} 16. Nb1 {[%clk 0:02:01.4]} 16...
Kf8 {[%clk 0:02:09.4]} 17. a3 {[%clk 0:02:01.1]} 17... Bc5 {[%clk 0:02:07.7]}
18. Kh2 {[%clk 0:01:36.9]} 18... Bd4 {[%clk 0:02:03]} 19. b3 {[%clk 0:01:35.6]}
19... f5 {[%clk 0:01:46]} 20. exf5 {[%clk 0:01:18.8]} 20... Bxf5 {[%clk
0:01:46.9]} 21. g4 {[%clk 0:01:19.5]} 21... Be6 {[%clk 0:01:44.4]} 22. Nd2
{[%clk 0:01:17.5]} 22... Ke7 {[%clk 0:01:39.5]} 23. Ne4 {[%clk 0:01:13.3]} 23...
h6 {[%clk 0:01:34.2]} 24. Ng3 {[%clk 0:01:12.3]} 24... Bb2 {[%clk 0:01:24.1]}
25. a4 {[%clk 0:01:07.6]} 25... a5 {[%clk 0:01:18.1]} 26. Nf5+ {[%clk
0:01:04.5]} 26... Kf6 {[%clk 0:01:18]} 27. Ng3 {[%clk 0:00:52]} 27... Rxd1
{[%clk 0:01:04.5]} 28. Rxd1 {[%clk 0:00:49]} 28... Rg8 {[%clk 0:01:02.2]} 29. f3
{[%clk 0:00:45]} 29... Ba3 {[%clk 0:00:58.5]} 30. Ne4+ {[%clk 0:00:39]} 30...
Ke7 {[%clk 0:00:58.6]} 31. Kg1 {[%clk 0:00:34]} 31... Bb4 {[%clk 0:00:58.2]} 32.
Kf2 {[%clk 0:00:33.8]} 32... h5 {[%clk 0:00:38.3]} 33. gxh5 {[%clk 0:00:27]}
33... f5 {[%clk 0:00:38.5]} 34. Nd2 {[%clk 0:00:27.3]} 34... Bc5+ {[%clk
0:00:38.2]} 35. Kf1 {[%clk 0:00:26.5]} 35... Be3 {[%clk 0:00:29.7]} 36. g4
{[%clk 0:00:09.1]} 36... fxg4 {[%clk 0:00:26.9]} 37. Ne4 {[%clk 0:00:09.7]}
37... gxf3 {[%clk 0:00:18.8]} 38. Bxf3 {[%clk 0:00:10.6]} 38... Bd4 {[%clk
0:00:16.1]} 39. Ke2 {[%clk 0:00:09.6]} 39... Bf5 {[%clk 0:00:16.6]} 40. Rh1
{[%clk 0:00:07.9]} 40... Rh8 {[%clk 0:00:17.1]} 41. Ng3 {[%clk 0:00:07.7]} 41...
Bh7 {[%clk 0:00:16.5]} 42. Be4 {[%clk 0:00:08.3]} 42... Bc5 {[%clk 0:00:13.6]}
43. Bxh7 {[%clk 0:00:07.6]} 43... Rxh7 {[%clk 0:00:14.5]} 44. Ne4 {[%clk
0:00:08.5]} 44... Bb4 {[%clk 0:00:12.6]} 45. Kf3 {[%clk 0:00:07.3]} 45... Rh8
{[%clk 0:00:12.3]} 46. h6 {[%clk 0:00:07.5]} 46... Kf7 {[%clk 0:00:12.1]} 47.
Kg4 {[%clk 0:00:07.5]} 47... Kg6 {[%clk 0:00:12.6]} 48. Rh5 {[%clk 0:00:07.3]}
48... Rxh6 {[%clk 0:00:11]} 49. Rxh6+ {[%clk 0:00:07.6]} 49... Kxh6 {[%clk
0:00:11.9]} 50. Kf5 {[%clk 0:00:08.5]} 50... Kg7 {[%clk 0:00:12.2]} 51. Kxe5
{[%clk 0:00:08.5]} 51... Kf8 {[%clk 0:00:11.9]} 52. Ke6 {[%clk 0:00:08]} 52...
Ke8 {[%clk 0:00:12.2]} 53. Ke5 {[%clk 0:00:05.6]} 53... Ke7 {[%clk 0:00:12.4]}
54. Kd4 {[%clk 0:00:06.5]} 54... Kd7 {[%clk 0:00:11.5]} 55. c5 {[%clk
0:00:06.8]} 55... Kc7 {[%clk 0:00:11.7]} 56. Kc4 {[%clk 0:00:07.4]} 56... Be1
{[%clk 0:00:11.9]} 57. Ng5 {[%clk 0:00:07]} 57... Bh4 {[%clk 0:00:11.8]} 58.
Ne6+ {[%clk 0:00:06.5]} 58... Kd7 {[%clk 0:00:12.4]} 59. Nd4 {[%clk 0:00:07.4]}
59... Be1 {[%clk 0:00:12.3]} 60. Nc2 {[%clk 0:00:07.5]} 60... Bd2 {[%clk
0:00:12.3]} 61. Nd4 {[%clk 0:00:07.9]} 61... Be1 {[%clk 0:00:12.3]} 62. Nf3
{[%clk 0:00:08.8]} 1/2-1/2

[Event "Late-Titled-Tuesday-Blitz-August-29-2023"]
[Site "Chess.com"]
[Date "2023.08.29"]
[Round "3"]
[White "albi1999"]
[Black "Oleksandr_Bortnyk"]
[Result "0-1"]
[WhiteElo "2684"]
[BlackElo "3044"]
[TimeControl "180+1"]
[EndTime "14:28:54 PDT"]
[Termination "Oleksandr_Bortnyk won by resignation"]

1. d4 {[%clk 0:02:57.6]} 1... d6 {[%clk 0:03:00.2]} 2. g3 {[%clk 0:02:53]} 2...
Nf6 {[%clk 0:02:58.8]} 3. Bg2 {[%clk 0:02:51.8]} 3... g6 {[%clk 0:02:59.5]} 4.
Nf3 {[%clk 0:02:51.4]} 4... Bg7 {[%clk 0:03:00.1]} 5. O-O {[%clk 0:02:50.8]}
5... O-O {[%clk 0:03:01]} 6. b3 {[%clk 0:02:50.3]} 6... a5 {[%clk 0:03:00]} 7.
Bb2 {[%clk 0:02:49.7]} 7... Bf5 {[%clk 0:02:57.8]} 8. Nbd2 {[%clk 0:02:45.9]}
8... d5 {[%clk 0:02:56.7]} 9. c4 {[%clk 0:02:43.2]} 9... c6 {[%clk 0:02:56.3]}
10. e3 {[%clk 0:02:29.4]} 10... a4 {[%clk 0:02:54.2]} 11. Qe2 {[%clk 0:02:28.9]}
11... a3 {[%clk 0:02:45.4]} 12. Bc3 {[%clk 0:02:28.4]} 12... Ne4 {[%clk
0:02:45.6]} 13. Nxe4 {[%clk 0:02:28.1]} 13... Bxe4 {[%clk 0:02:46.5]} 14. Rfd1
{[%clk 0:02:24.4]} 14... e6 {[%clk 0:02:43.3]} 15. Bf1 {[%clk 0:02:20.8]} 15...
Bxf3 {[%clk 0:02:32]} 16. Qxf3 {[%clk 0:02:21.7]} 16... f5 {[%clk 0:02:32.5]}
17. b4 {[%clk 0:02:08.1]} 17... Nd7 {[%clk 0:02:28.6]} 18. b5 {[%clk 0:02:07.4]}
18... Nf6 {[%clk 0:02:27.5]} 19. Bb4 {[%clk 0:02:05.9]} 19... Rf7 {[%clk
0:02:27.5]} 20. Rab1 {[%clk 0:01:53.6]} 20... Bf8 {[%clk 0:02:25.3]} 21. Bxf8
{[%clk 0:01:49.5]} 21... Qxf8 {[%clk 0:02:26.2]} 22. c5 {[%clk 0:01:47.9]} 22...
Ne4 {[%clk 0:02:24.1]} 23. Rb3 {[%clk 0:01:45.6]} 23... e5 {[%clk 0:02:16.9]}
24. bxc6 {[%clk 0:01:36.8]} 24... bxc6 {[%clk 0:02:17.8]} 25. Rb6 {[%clk
0:01:37.1]} 25... Rc7 {[%clk 0:02:02.5]} 26. Rc1 {[%clk 0:01:19]} 26... exd4
{[%clk 0:01:55.1]} 27. exd4 {[%clk 0:01:19.9]} 27... Qh6 {[%clk 0:01:54.5]} 28.
Rcb1 {[%clk 0:00:55.2]} 28... Qd2 {[%clk 0:01:44.6]} 29. Rb8+ {[%clk 0:00:51.6]}
29... Rxb8 {[%clk 0:01:43]} 30. Rxb8+ {[%clk 0:00:51.1]} 30... Kg7 {[%clk
0:01:43.9]} 31. Bd3 {[%clk 0:00:45.2]} 31... Nxf2 {[%clk 0:01:16.9]} 32. Bxf5
{[%clk 0:00:27.8]} 32... Qe1+ {[%clk 0:00:28.1]} 33. Kg2 {[%clk 0:00:27.2]}
33... Qh1+ {[%clk 0:00:15.3]} 34. Kxf2 {[%clk 0:00:26.2]} 34... Qxh2+ {[%clk
0:00:16.2]} 35. Qg2 {[%clk 0:00:12.6]} 35... Qh6 {[%clk 0:00:16.4]} 36. Be6
{[%clk 0:00:09]} 36... Qd2+ {[%clk 0:00:15.9]} 37. Kg1 {[%clk 0:00:09.1]} 37...
Qe1+ {[%clk 0:00:13.1]} 38. Qf1 {[%clk 0:00:07.6]} 38... Qxg3+ {[%clk
0:00:11.7]} 39. Kh1 {[%clk 0:00:07]} 39... Qh4+ {[%clk 0:00:11.7]} 40. Bh3
{[%clk 0:00:07.2]} 40... Rf7 {[%clk 0:00:09.7]} 41. Qg2 {[%clk 0:00:07.4]} 41...
Qe1+ {[%clk 0:00:04]} 42. Qg1 {[%clk 0:00:05.9]} 42... Qe4+ {[%clk 0:00:04.1]}
43. Bg2 {[%clk 0:00:04.4]} 43... Qh4+ {[%clk 0:00:03.3]} 44. Qh2 {[%clk
0:00:05]} 44... Qe1+ {[%clk 0:00:02.8]} 45. Qg1 {[%clk 0:00:05.2]} 45... Qh4+
{[%clk 0:00:03.5]} 46. Qh2 {[%clk 0:00:05.6]} 46... Qxd4 {[%clk 0:00:04.1]} 47.
Rb1 {[%clk 0:00:03.3]} 47... Re7 {[%clk 0:00:02.7]} 48. Rf1 {[%clk 0:00:02.5]}
48... Qxc5 {[%clk 0:00:03.1]} 49. Qf4 {[%clk 0:00:02.5]} 49... Re4 {[%clk
0:00:01.7]} 50. Qf6+ {[%clk 0:00:02.2]} 50... Kh6 {[%clk 0:00:02.4]} 51. Qf8+
{[%clk 0:00:02.1]} 51... Qxf8 {[%clk 0:00:02.6]} 52. Rxf8 {[%clk 0:00:02.9]}
52... Re1+ {[%clk 0:00:02.3]} 53. Kh2 {[%clk 0:00:03.1]} 53... Re2 {[%clk
0:00:03]} 54. Rc8 {[%clk 0:00:03.2]} 54... Rc2 {[%clk 0:00:02.4]} 55. Ra8 {[%clk
0:00:03.1]} 55... Rxa2 {[%clk 0:00:02.6]} 56. Ra6 {[%clk 0:00:03.3]} 56... c5
{[%clk 0:00:03.1]} 57. Kh3 {[%clk 0:00:02.8]} 57... d4 {[%clk 0:00:03.8]} 58.
Bd5 {[%clk 0:00:03.1]} 58... Ra1 {[%clk 0:00:04.4]} 59. Kg3 {[%clk 0:00:03.4]}
59... d3 {[%clk 0:00:04.5]} 60. Kf3 {[%clk 0:00:03.7]} 60... d2 {[%clk 0:00:05]}
61. Bb3 {[%clk 0:00:04.2]} 61... d1=Q+ {[%clk 0:00:04.7]} 62. Bxd1 {[%clk
0:00:04.6]} 62... Rxd1 {[%clk 0:00:05]} 63. Rxa3 {[%clk 0:00:05.5]} 63... Rh1
{[%clk 0:00:04.1]} 0-1

[Event "Late-Titled-Tuesday-Blitz-August-29-2023"]
[Site "Chess.com"]
[Date "2023.08.29"]
[Round "3"]
[White "angryspacevoid"]
[Black "alturas_pacificas"]
[Result "1-0"]
[WhiteElo "2583"]
[BlackElo "2412"]
[TimeControl "180+1"]
[EndTime "14:28:55 PDT"]
[Termination "angryspacevoid won by resignation"]

1. e4 {[%clk 0:02:56.5]} 1... e5 {[%clk 0:02:59.1]} 2. c3 {[%clk 0:02:48.5]}
2... c5 {[%clk 0:02:54.1]} 3. Bc4 {[%clk 0:02:45]} 3... d6 {[%clk 0:02:53.4]} 4.
Nf3 {[%clk 0:02:43.1]} 4... Be6 {[%clk 0:02:48.8]} 5. Bxe6 {[%clk 0:02:36.8]}
5... fxe6 {[%clk 0:02:49.7]} 6. d4 {[%clk 0:02:37.4]} 6... exd4 {[%clk
0:02:47.4]} 7. cxd4 {[%clk 0:02:38.3]} 7... cxd4 {[%clk 0:02:41.6]} 8. Nxd4
{[%clk 0:02:39.1]} 8... Qd7 {[%clk 0:02:29.7]} 9. Nc3 {[%clk 0:02:34.6]} 9...
Nc6 {[%clk 0:02:29]} 10. O-O {[%clk 0:02:34.1]} 10... Nf6 {[%clk 0:02:26.8]} 11.
Re1 {[%clk 0:02:31]} 11... Nxd4 {[%clk 0:02:17.7]} 12. Qxd4 {[%clk 0:02:29.1]}
12... e5 {[%clk 0:02:18.1]} 13. Qc4 {[%clk 0:02:27]} 13... Qf7 {[%clk
0:02:08.4]} 14. Qd3 {[%clk 0:02:21.1]} 14... Be7 {[%clk 0:01:38.1]} 15. Qb5+
{[%clk 0:01:55.9]} 15... Kf8 {[%clk 0:01:21.3]} 16. Qxb7 {[%clk 0:01:53.5]}
16... Rd8 {[%clk 0:01:21.7]} 17. Be3 {[%clk 0:01:47.3]} 17... h6 {[%clk
0:01:12]} 18. f4 {[%clk 0:01:37.2]} 18... exf4 {[%clk 0:01:08.1]} 19. Bxf4
{[%clk 0:01:36.5]} 19... g5 {[%clk 0:01:07.2]} 20. Bg3 {[%clk 0:01:35.8]} 20...
Rd7 {[%clk 0:00:54.9]} 21. Qb5 {[%clk 0:01:26.8]} 21... Kg7 {[%clk 0:00:47]} 22.
Rf1 {[%clk 0:01:24.1]} 22... Qe6 {[%clk 0:00:39.1]} 23. Rae1 {[%clk 0:01:19.5]}
23... Rhd8 {[%clk 0:00:37.5]} 24. Kh1 {[%clk 0:01:16.6]} 24... Nh5 {[%clk
0:00:33.7]} 25. Bf2 {[%clk 0:01:13]} 25... Bf6 {[%clk 0:00:30.4]} 26. Nd5 {[%clk
0:01:02.1]} 26... Be5 {[%clk 0:00:29.1]} 27. Qe2 {[%clk 0:01:01.8]} 27... Nf4
{[%clk 0:00:26.5]} 28. Nxf4 {[%clk 0:01:02.3]} 28... gxf4 {[%clk 0:00:22]} 29.
b3 {[%clk 0:00:59.8]} 29... Kh7 {[%clk 0:00:21.4]} 30. Rc1 {[%clk 0:00:58.7]}
30... Rg7 {[%clk 0:00:21.1]} 31. Rc2 {[%clk 0:00:53.9]} 31... Rdg8 {[%clk
0:00:21.3]} 32. Bg1 {[%clk 0:00:54.5]} 32... Qg6 {[%clk 0:00:19]} 33. Qf3 {[%clk
0:00:53]} 33... Qg4 {[%clk 0:00:19]} 34. Qxg4 {[%clk 0:00:45.7]} 34... Rxg4
{[%clk 0:00:18.7]} 35. Bxa7 {[%clk 0:00:46.1]} 35... Rh4 {[%clk 0:00:17.7]} 36.
Bg1 {[%clk 0:00:45.7]} 36... Rg7 {[%clk 0:00:14.7]} 37. a4 {[%clk 0:00:45.8]}
37... Rh5 {[%clk 0:00:12.4]} 38. Rf3 {[%clk 0:00:42.9]} 38... Rb7 {[%clk
0:00:08.6]} 39. a5 {[%clk 0:00:42.8]} 39... Rg5 {[%clk 0:00:07.1]} 40. a6 {[%clk
0:00:42.8]} 40... Rb8 {[%clk 0:00:07.7]} 41. a7 {[%clk 0:00:42.9]} 41... Ra8
{[%clk 0:00:07.9]} 42. b4 {[%clk 0:00:43.1]} 42... Rg7 {[%clk 0:00:07.3]} 43.
Ra3 {[%clk 0:00:41.7]} 43... Rb7 {[%clk 0:00:07.3]} 44. Rc4 {[%clk 0:00:36.6]}
44... Kg6 {[%clk 0:00:07.3]} 45. Bd4 {[%clk 0:00:36.2]} 45... Kf6 {[%clk
0:00:07.1]} 46. Ra6 {[%clk 0:00:30.2]} 46... Bxd4 {[%clk 0:00:05.9]} 47. Rxd4
{[%clk 0:00:26]} 47... Ke5 {[%clk 0:00:05.8]} 48. Raxd6 {[%clk 0:00:22.9]} 48...
Raxa7 {[%clk 0:00:04.9]} 49. h4 {[%clk 0:00:22.1]} 49... Ra3 {[%clk 0:00:02.6]}
50. Rd1 {[%clk 0:00:15]} 50... Kxe4 {[%clk 0:00:02.2]} 51. Rxh6 {[%clk
0:00:15.4]} 51... Rxb4 {[%clk 0:00:01.5]} 52. Rf6 {[%clk 0:00:13.4]} 52... Ke5
{[%clk 0:00:01.7]} 53. Rf8 {[%clk 0:00:12.7]} 53... Raa4 {[%clk 0:00:02.2]} 54.
h5 {[%clk 0:00:12.1]} 54... f3 {[%clk 0:00:02.5]} 55. Rxf3 {[%clk 0:00:10.3]}
55... Rh4+ {[%clk 0:00:03.1]} 56. Kg1 {[%clk 0:00:09.7]} 56... Rxh5 {[%clk
0:00:03.2]} 57. Rb3 {[%clk 0:00:09.8]} 57... Rc4 {[%clk 0:00:02.9]} 58. Rb5+
{[%clk 0:00:10]} 58... Kf4 {[%clk 0:00:03]} 59. Rxh5 {[%clk 0:00:10.9]} 1-0

[Event "Late-Titled-Tuesday-Blitz-August-29-2023"]
[Site "Chess.com"]
[Date "2023.08.29"]
[Round "3"]
[White "Aureliano-Buendia"]
[Black "Berant"]
[Result "1/2-1/2"]
[WhiteElo "2542"]
[BlackElo "2341"]
[TimeControl "180+1"]
[EndTime "14:28:59 PDT"]
[Termination "Game drawn by stalemate"]

1. e4 {[%clk 0:03:00.9]} 1... c5 {[%clk 0:02:57.9]} 2. Nf3 {[%clk 0:02:59.6]}
2... Nc6 {[%clk 0:02:57.9]} 3. d4 {[%clk 0:02:59.2]} 3... cxd4 {[%clk
0:02:58.2]} 4. Nxd4 {[%clk 0:03:00]} 4... e5 {[%clk 0:02:58]} 5. Nb3 {[%clk
0:02:59.8]} 5... Nf6 {[%clk 0:02:58.2]} 6. Nc3 {[%clk 0:03:00.2]} 6... Bb4
{[%clk 0:02:57.6]} 7. Bc4 {[%clk 0:03:00.5]} 7... O-O {[%clk 0:02:57]} 8. O-O
{[%clk 0:02:58.8]} 8... h6 {[%clk 0:02:57]} 9. Nd5 {[%clk 0:02:56.3]} 9... Nxd5
{[%clk 0:02:48.9]} 10. Bxd5 {[%clk 0:02:57.2]} 10... Ne7 {[%clk 0:02:40.7]} 11.
Bc4 {[%clk 0:02:48.2]} 11... Ng6 {[%clk 0:02:39]} 12. Be3 {[%clk 0:02:32]} 12...
Be7 {[%clk 0:02:35.6]} 13. Qd2 {[%clk 0:02:24.9]} 13... d6 {[%clk 0:02:35.1]}
14. Rad1 {[%clk 0:02:13.8]} 14... Be6 {[%clk 0:02:32.2]} 15. Bd5 {[%clk
0:02:09.5]} 15... Bxd5 {[%clk 0:02:25.9]} 16. Qxd5 {[%clk 0:02:08.1]} 16... b6
{[%clk 0:02:24.1]} 17. c4 {[%clk 0:02:05.5]} 17... Rc8 {[%clk 0:02:21.8]} 18.
Nd2 {[%clk 0:02:04.5]} 18... Qd7 {[%clk 0:02:11.2]} 19. b3 {[%clk 0:02:02.9]}
19... Bg5 {[%clk 0:02:01.9]} 20. Bxg5 {[%clk 0:01:44.7]} 20... hxg5 {[%clk
0:02:02.8]} 21. Rfe1 {[%clk 0:01:44.9]} 21... Nf4 {[%clk 0:01:58.3]} 22. Qb5
{[%clk 0:01:44.9]} 22... Qg4 {[%clk 0:01:48.7]} 23. g3 {[%clk 0:01:41.3]} 23...
Ne2+ {[%clk 0:01:33.9]} 24. Kg2 {[%clk 0:01:35.5]} 24... Nc3 {[%clk 0:01:32.4]}
25. f3 {[%clk 0:01:33.2]} 25... Qe6 {[%clk 0:01:28.9]} 26. Qa6 {[%clk
0:01:30.1]} 26... Nxd1 {[%clk 0:01:27.6]} 27. Rxd1 {[%clk 0:01:31]} 27... g4
{[%clk 0:01:23.5]} 28. Qxa7 {[%clk 0:01:27.9]} 28... gxf3+ {[%clk 0:01:20.1]}
29. Nxf3 {[%clk 0:01:28.8]} 29... Ra8 {[%clk 0:01:19.3]} 30. Qxb6 {[%clk
0:01:26.9]} 30... Rxa2+ {[%clk 0:01:19]} 31. Rd2 {[%clk 0:01:27.8]} 31... Rfa8
{[%clk 0:01:04.5]} 32. Qf2 {[%clk 0:01:22.1]} 32... Rxd2 {[%clk 0:01:02.7]} 33.
Qxd2 {[%clk 0:01:23]} 33... f5 {[%clk 0:01:00.2]} 34. Ng5 {[%clk 0:01:20.5]}
34... Qe8 {[%clk 0:00:41.8]} 35. exf5 {[%clk 0:01:19.5]} 35... Qc6+ {[%clk
0:00:34]} 36. Kh3 {[%clk 0:01:17.1]} 36... Rf8 {[%clk 0:00:27.6]} 37. Qd3 {[%clk
0:01:11.7]} 37... e4 {[%clk 0:00:18.2]} 38. Qxe4 {[%clk 0:01:08.4]} 38... Qxe4
{[%clk 0:00:18.2]} 39. Nxe4 {[%clk 0:01:09.3]} 39... Rxf5 {[%clk 0:00:17.5]} 40.
Nxd6 {[%clk 0:01:09.9]} 40... Rf6 {[%clk 0:00:17.2]} 41. c5 {[%clk 0:01:10.1]}
41... Kf8 {[%clk 0:00:17.5]} 42. b4 {[%clk 0:01:06.9]} 42... Ke7 {[%clk
0:00:16.7]} 43. b5 {[%clk 0:01:07.4]} 43... Kd7 {[%clk 0:00:16.7]} 44. b6 {[%clk
0:01:07.8]} 44... Kc6 {[%clk 0:00:16.1]} 45. b7 {[%clk 0:01:07]} 45... Rf8
{[%clk 0:00:15.8]} 46. Kg4 {[%clk 0:01:06]} 46... Rd8 {[%clk 0:00:14.8]} 47. h4
{[%clk 0:01:03.2]} 47... Kxc5 {[%clk 0:00:13.7]} 48. Nc8 {[%clk 0:01:02.7]}
48... Rd4+ {[%clk 0:00:13.9]} 49. Kf5 {[%clk 0:01:02.4]} 49... Rb4 {[%clk
0:00:14.4]} 50. Ne7 {[%clk 0:00:55]} 50... Rxb7 {[%clk 0:00:14.7]} 51. Ng6
{[%clk 0:00:55.1]} 51... Kd6 {[%clk 0:00:12.7]} 52. Nf4 {[%clk 0:00:51]} 52...
Ke7 {[%clk 0:00:10.9]} 53. Kg6 {[%clk 0:00:50.6]} 53... Kf8 {[%clk 0:00:11]} 54.
Ne6+ {[%clk 0:00:49.9]} 54... Kg8 {[%clk 0:00:11.6]} 55. h5 {[%clk 0:00:49.6]}
55... Rb6 {[%clk 0:00:11.8]} 56. Kf5 {[%clk 0:00:48.9]} 56... Rb5+ {[%clk
0:00:11.9]} 57. Kg6 {[%clk 0:00:48.1]} 57... Rb6 {[%clk 0:00:11.8]} 58. Kf5
{[%clk 0:00:48.4]} 58... Kf7 {[%clk 0:00:12.1]} 59. Nf4 {[%clk 0:00:47.1]} 59...
Rb5+ {[%clk 0:00:11.9]} 60. Kg4 {[%clk 0:00:47.5]} 60... Ra5 {[%clk 0:00:11.6]}
61. Kh4 {[%clk 0:00:45.9]} 61... Kf6 {[%clk 0:00:11.8]} 62. g4 {[%clk
0:00:44.9]} 62... Ra4 {[%clk 0:00:12]} 63. Ng6 {[%clk 0:00:44.7]} 63... Rb4
{[%clk 0:00:10.8]} 64. Nh8 {[%clk 0:00:43.4]} 64... Rb1 {[%clk 0:00:10.2]} 65.
Ng6 {[%clk 0:00:37.8]} 65... Rh1+ {[%clk 0:00:10.4]} 66. Kg3 {[%clk 0:00:38]}
66... Kg5 {[%clk 0:00:11]} 67. Nf4 {[%clk 0:00:34.2]} 67... Rg1+ {[%clk
0:00:10.9]} 68. Ng2 {[%clk 0:00:34.8]} 68... Rxg2+ {[%clk 0:00:10]} 69. Kxg2
{[%clk 0:00:33.8]} 69... Kxg4 {[%clk 0:00:10.6]} 70. h6 {[%clk 0:00:31.9]} 70...
gxh6 {[%clk 0:00:09]} 71. Kh2 {[%clk 0:00:32.2]} 71... h5 {[%clk 0:00:09.5]} 72.
Kg2 {[%clk 0:00:32.4]} 72... h4 {[%clk 0:00:10.4]} 73. Kh2 {[%clk 0:00:32.8]}
73... h3 {[%clk 0:00:10.6]} 74. Kh1 {[%clk 0:00:33.4]} 74... Kg3 {[%clk
0:00:11]} 75. Kg1 {[%clk 0:00:34]} 75... h2+ {[%clk 0:00:11.3]} 76. Kh1 {[%clk
0:00:34.7]} 76... Kh3 {[%clk 0:00:11.6]} 1/2-1/2